bitfinex/quotes_SOLUSD_20250317
["timestamp","ask_amount","ask_price","bid_price","bid_amount"]
[1742211573844,16.10407194,129.62,129.6,312.0]
[1742211574225,1.1520877,129.62,129.6,312.0]
[1742211574551,1.1520877,129.62,129.6,319.7159]
[1742211574743,1.1520877,129.62,129.6,312.0]
[1742211575143,1.1520877,129.62,129.6,319.716]
[1742211575444,1.1520877,129.62,129.6,312.0]
[1742211576017,1.1520877,129.62,129.6,319.7159]
[1742211581741,1.1520877,129.62,129.6,7.7159]
[1742211583033,1.1520877,129.62,129.61,14.95198424]
[1742211583234,1.1520877,129.62,129.61,114.4012331]
[1742211584736,1.1520877,129.62,129.61,426.4012331]
[1742211585446,1.1520877,129.62,129.61,392.7996]
[1742211587164,1.1520877,129.62,129.61,80.7996]
[1742211587949,1.1520877,129.62,129.59,116.1111331]
[1742211588751,1.1520877,129.62,129.59,82.5095]
[1742211589572,1.1520877,129.62,129.59,97.46148424]
[1742211590096,1.1520877,129.62,129.59,409.46148424]
[1742211590563,1.1520877,129.62,129.6,6.58]
[1742211591066,1.1520877,129.62,129.61,33.6016331]
[1742211591241,1.1520877,129.62,129.6,87.3796]
[1742211591652,1.1520877,129.62,129.6,6.58]
[1742211592062,1.1520877,129.62,129.61,6.58]
[1742211593872,16.10407194,129.62,129.61,6.58]
[1742211594066,16.10407194,129.62,129.61,318.58]
[1742211594258,16.10407194,129.62,129.61,312.0]
[1742211594445,1.1520877,129.62,129.61,318.58]
[1742211597156,1.1520877,129.62,129.61,6.58]
[1742211600248,1.1520877,129.62,129.61,318.58]
[1742211601078,1.1520877,129.62,129.61,6.58]
[1742211602866,1.1520877,129.62,129.61,29.24738424]
[1742211603171,1.1520877,129.62,129.61,14.2954]
[1742211604073,1.1520877,129.62,129.61,341.24738424]
[1742211604443,1.1520877,129.62,129.61,318.58]
[1742211604649,16.10407194,129.62,129.61,6.58]
[1742211604950,23.81887194,129.62,129.61,6.58]
[1742211606467,16.10407194,129.62,129.61,6.58]
[1742211606850,1.1520877,129.62,129.61,6.58]
[1742211607051,16.10407194,129.62,129.61,6.58]
[1742211609389,23.81887194,129.62,129.61,6.58]
[1742211609562,23.81887194,129.62,129.6,6.58]
[1742211609758,15.23630738,129.61,129.59,0.063]
[1742211609980,74.7599212,129.6,129.59,0.063]
[1742211610283,75.04424434,129.6,129.59,0.063]
[1742211610449,82.76024434,129.6,129.59,0.063]
[1742211610854,1.1520877,129.62,129.59,0.063]
[1742211611070,1.1520877,129.62,129.6,6.58]
[1742211611773,8.8668877,129.62,129.6,6.58]
[1742211612489,14.95198424,129.61,129.6,6.58]
[1742211615058,22.66738424,129.61,129.6,6.58]
[1742211616779,22.95170738,129.61,129.6,6.58]
[1742211618176,22.66738424,129.61,129.6,6.58]
[1742211618984,22.66738424,129.61,129.59,6.663]
[1742211619165,22.66798424,129.6,129.59,6.663]
[1742211619787,82.4759212,129.6,129.59,6.663]
[1742211620883,82.76024434,129.6,129.59,0.063]
[1742211623991,101.4098932,129.6,129.59,0.063]
[1742211624175,0.28432314,129.58,129.53,0.063]
[1742211624366,14.95198424,129.54,129.53,0.063]
[1742211624573,14.95198424,129.54,129.53,6.663]
[1742211626393,14.95198424,129.54,129.53,0.063]
[1742211629792,22.67158424,129.54,129.53,0.063]
[1742211631298,22.67158424,129.54,129.53,0.063]
[1742211632804,14.95198424,129.54,129.53,0.063]
[1742211634106,14.95198424,129.55,129.53,0.063]
[1742211636190,14.95198424,129.56,129.53,0.063]
[1742211636582,8.00122314,129.59,129.53,0.063]
[1742211636783,14.95198424,129.57,129.53,0.063]
[1742211636998,14.95198424,129.57,129.53,312.063]
[1742211637701,14.95198424,129.55,129.53,312.063]
[1742211642504,14.95198424,129.54,129.53,0.063]
[1742211643305,14.95198424,129.55,129.53,0.063]
[1742211643915,14.95198424,129.55,129.54,6.6]
[1742211647087,14.95198424,129.56,129.54,6.6]
[1742211648302,0.17216157,129.59,129.54,14.3195]
[1742211648303,0.03,129.59,129.54,14.3195]
[1742211648608,14.95198424,129.57,129.54,14.3195]
[1742211648812,14.95198424,129.56,129.54,14.3195]
[1742211650097,14.95198424,129.57,129.54,14.3195]
[1742211650307,7.7467,129.59,129.54,14.3195]
[1742211650600,14.95198424,129.57,129.54,14.3195]
[1742211650992,14.95198424,129.56,129.54,14.3195]
[1742211651407,14.95198424,129.56,129.54,318.6]
[1742211653613,22.67048424,129.56,129.54,318.6]
[1742211654804,14.95198424,129.55,129.54,318.6]
[1742211655004,14.95198424,129.55,129.54,6.6]
[1742211655801,14.95198424,129.55,129.53,0.063]
[1742211655998,14.95198424,129.54,129.53,0.063]
[1742211656591,74.7599212,129.54,129.53,0.063]
[1742211657218,82.4795212,129.54,129.53,0.063]
[1742211657992,82.76384434,129.54,129.53,0.063]
[1742211663709,14.95198424,129.54,129.53,0.063]
[1742211664892,22.67158424,129.54,129.53,0.063]
[1742211666219,14.95198424,129.54,129.53,0.063]
[1742211666515,22.67158424,129.54,129.53,0.063]
[1742211668214,14.95198424,129.54,129.53,0.063]
[1742211669293,22.67158424,129.54,129.53,0.063]
[1742211671430,22.67158424,129.54,129.53,0.063]
[1742211671803,14.95198424,129.54,129.53,0.063]
[1742211672410,22.67158424,129.54,129.53,0.063]
[1742211672801,82.76384434,129.54,129.53,0.063]
[1742211673823,101.4134932,129.54,129.53,0.063]
[1742211676331,20.0,129.51,129.46,394.4304]
[1742211676530,20.0,129.51,129.49,6.6]
[1742211676731,27.7218,129.51,129.49,6.6]
[1742211677526,27.7218,129.51,129.46,313.6308]
[1742211677727,14.95198424,129.49,129.47,6.6]
[1742211681515,14.95198424,129.48,129.47,318.6]
[1742211681717,14.95198424,129.48,129.47,6.6]
[1742211683236,7.7225,129.5,129.47,6.6]
[1742211683437,14.95198424,129.48,129.47,6.6]
[1742211687039,20.28432314,129.51,129.47,6.6]
[1742211687342,34.95198424,129.51,129.47,6.6]
[1742211687720,14.95198424,129.51,129.47,6.6]
[1742211688730,14.95198424,129.5,129.47,6.6]
[1742211689434,14.95198424,129.5,129.47,14.3236]
[1742211690147,14.95198424,129.5,129.47,326.3236]
[1742211690535,14.95198424,129.5,129.47,326.3866]
[1742211692062,29.41067886,129.58,129.52,6.79852314]
[1742211692230,29.41067886,129.58,129.57,16.60128424]
[1742211692538,29.41067886,129.58,129.57,364.25757189]
[1742211692539,27.74407886,129.58,129.57,364.25757189]
[1742211694850,2.991e-05,129.58,129.57,333.59225708]
[1742211695046,2.991e-05,129.58,129.57,645.59225708]
[1742211695238,0.03,129.59,129.57,653.89635451]
[1742211695442,0.03,129.59,129.58,23.25608167]
[1742211696450,0.03,129.59,129.58,111.77288167]
[1742211696632,1.1520877,129.62,129.58,131.06598167]
[1742211696828,1.1520877,129.62,129.6,23.25608167]
[1742211697028,1.1520877,129.62,129.61,6.92]
[1742211698947,1.1520877,129.62,129.61,14.6354]
[1742211702046,1.1520877,129.62,129.61,95.435]
[1742211702246,1.1520877,129.62,129.61,118.69108167]
[1742211703548,1.1520877,129.62,129.61,95.435]
[1742211709055,1.1520877,129.62,129.61,80.7996]
[1742211709461,24.40816937,129.62,129.61,87.6596]
[1742211710458,24.40816937,129.62,129.61,80.7996]
[1742211711137,24.40816937,129.62,129.6,6.86]
[1742211711651,24.40816937,129.62,129.59,7.7163]
[1742211711856,1.1520877,129.62,129.6,6.84]
[1742211712058,1.1520877,129.62,129.61,23.25608167]
[1742211712642,1.1520877,129.62,129.61,111.77108167]
[1742211714146,1.1520877,129.62,129.61,88.515]
[1742211718565,1.1520877,129.62,129.61,80.7996]
[1742211718756,1.1520877,129.62,129.61,88.515]
[1742211721964,1.1520877,129.62,129.61,22.59810951]
[1742211724668,1.1520877,129.62,129.61,334.59810951]
[1742211725466,1.1520877,129.62,129.61,415.39770951]
[1742211727161,1.1520877,129.62,129.61,103.39770951]
[1742211727670,1.1520877,129.62,129.61,88.515]
[1742211728970,1.1520877,129.62,129.61,103.39770951]
[1742211731572,1.1520877,129.62,129.61,88.515]
[1742211733768,1.1520877,129.62,129.61,80.7996]
[1742211733974,16.03479721,129.62,129.61,6.78]
[1742211734171,1.1520877,129.62,129.61,6.78]
[1742211734755,1.1520877,129.62,129.61,14.4954]
[1742211734972,1.1520877,129.62,129.61,6.78]
[1742211735473,16.03479721,129.62,129.61,6.78]
[1742211740863,25.40959721,129.62,129.59,0.063]
[1742211741176,14.88270951,129.61,129.59,0.063]
[1742211741371,17.69479721,129.62,129.59,0.063]
[1742211741555,17.69479721,129.62,129.59,7.7796]
[1742211741758,14.88270951,129.61,129.59,7.7796]
[1742211742057,14.88270951,129.61,129.59,0.063]
[1742211743469,17.69479721,129.62,129.59,0.063]
[1742211744178,25.40969721,129.62,129.59,0.063]
[1742211744480,17.69479721,129.62,129.59,0.063]
[1742211746269,14.88270951,129.61,129.59,0.063]
[1742211747975,17.69479721,129.62,129.59,0.063]
[1742211748977,25.40969721,129.62,129.59,0.063]
[1742211749162,35.16703265,129.6,129.59,0.063]
[1742211749582,0.28432314,129.59,129.49,6.6202]
[1742211749772,14.88270951,129.54,129.5,6.76]
[1742211749975,14.88270951,129.54,129.5,95.2816]
[1742211750566,14.88270951,129.54,129.5,80.7996]
[1742211750776,22.60230951,129.54,129.5,80.7996]
[1742211751083,14.88270951,129.54,129.51,6.76]
[1742211751280,22.60200951,129.55,129.51,6.76]
[1742211751984,22.60200951,129.55,129.51,6.74]
[1742211752184,14.88270951,129.54,129.51,6.74]
[1742211752381,14.88270951,129.52,129.49,6.6202]
[1742211752588,14.88270951,129.52,129.5,6.74]
[1742211753172,14.88270951,129.52,129.47,0.063]
[1742211753371,14.88270951,129.52,129.48,6.74]
[1742211754183,14.88270951,129.52,129.48,14.4627]
[1742211755288,14.88270951,129.52,129.48,326.4627]
[1742211756095,14.88270951,129.53,129.48,326.4627]
[1742211757092,14.88270951,129.52,129.48,326.4627]
[1742211758797,14.88270951,129.52,129.48,14.4627]
[1742211758971,14.88270951,129.53,129.48,29.34540951]
[1742211761382,14.88270951,129.53,129.48,341.34540951]
[1742211761982,22.60300951,129.53,129.48,341.34540951]
[1742211762172,14.88270951,129.52,129.48,326.4627]
[1742211763093,14.88270951,129.53,129.48,341.34540951]
[1742211763592,14.88270951,129.52,129.48,326.4627]
[1742211764299,14.88270951,129.52,129.48,14.4627]
[1742211769398,14.88270951,129.52,129.48,326.4627]
[1742211770279,14.88270951,129.52,129.48,14.4627]
[1742211772183,14.88270951,129.53,129.48,29.34540951]
[1742211773187,0.2,129.51,129.48,29.34540951]
[1742211773375,0.2,129.51,129.48,341.34540951]
[1742211774412,0.2,129.51,129.48,326.4627]
[1742211774709,0.2,129.51,129.48,341.34540951]
[1742211775783,14.88270951,129.53,129.48,341.34540951]
[1742211776316,14.88270951,129.53,129.48,326.4627]
[1742211776514,14.88270951,129.53,129.48,341.34540951]
[1742211776802,14.88270951,129.53,129.48,29.34540951]
[1742211779901,14.88270951,129.53,129.48,341.34540951]
[1742211781510,0.28432314,129.56,129.49,14.88270951]
[1742211781708,1.5855,129.57,129.52,14.88270951]
[1742211781885,14.88270951,129.58,129.54,7.7196]
[1742211782204,0.03,129.59,129.54,22.60230951]
[1742211782205,15.05487108,129.59,129.54,22.60230951]
[1742211783190,14.88270951,129.58,129.54,22.60230951]
[1742211784512,0.03,129.59,129.55,14.88270951]
[1742211784812,20.03,129.59,129.55,20.89240951]
[1742211785908,0.03,129.59,129.55,20.89240951]
[1742211786514,0.03,129.59,129.55,28.61080951]
[1742211786715,14.91270951,129.59,129.55,13.7281]
[1742211787514,19.14964886,129.55,129.49,0.063]
[1742211787700,20.0,129.51,129.49,0.063]
[1742211788514,14.88270951,129.5,129.49,0.063]
[1742211789307,20.0,129.51,129.49,0.063]
[1742211790019,34.88270951,129.51,129.49,0.063]
[1742211792015,14.88270951,129.5,129.49,0.063]
[1742211792708,27.7215,129.51,129.49,0.063]
[1742211792911,0.28432314,129.52,129.49,0.063]
[1742211793108,14.88270951,129.5,129.49,0.063]
[1742211794424,22.60470951,129.5,129.49,0.063]
[1742211799823,22.88903265,129.5,129.49,0.063]
[1742211828966,41.53868151,129.5,129.49,0.063]
[1742211835063,101.06951955,129.5,129.49,0.063]
[1742211837455,38.933972,129.48,129.47,0.063]
[1742211837664,0.28432314,129.47,129.46,0.063]
[1742211838045,15.16703265,129.47,129.46,0.063]
[1742211838542,33.81668151,129.47,129.46,0.063]
[1742211839036,41.54038151,129.47,129.46,0.063]
[1742211847562,15.16703265,129.47,129.46,0.063]
[1742211847765,41.54038151,129.47,129.46,0.063]
[1742211851071,22.89073265,129.47,129.46,0.063]
[1742211852677,41.54038151,129.47,129.46,0.063]
[1742211862694,41.54038151,129.47,129.46,0.0001]
[1742211862986,0.28432314,129.46,129.45,0.063]
[1742211863277,33.81668151,129.46,129.45,0.063]
[1742211863481,42.7446432,129.46,129.45,0.0001]
[1742211863864,0.28432314,129.42,129.41,0.063]
[1742211864064,15.16703265,129.42,129.41,0.063]
[1742211864876,22.89373265,129.42,129.41,0.063]
[1742211866585,15.16703265,129.42,129.41,0.063]
[1742211867823,22.89373265,129.42,129.41,0.063]
[1742211869886,41.54338151,129.42,129.41,0.063]
[1742211870198,101.07421955,129.42,129.41,0.063]
[1742211871799,101.07421955,129.42,129.41,0.063]
[1742211872485,41.54338151,129.42,129.41,0.063]
[1742211876198,101.07421955,129.42,129.41,0.063]
[1742211877802,38.933972,129.4,129.39,0.063]
[1742211878092,53.81668151,129.4,129.39,0.063]
[1742211878285,35.16703265,129.4,129.39,0.063]
[1742211881187,42.89493265,129.4,129.39,0.063]
[1742211881387,35.16703265,129.4,129.39,0.063]
[1742211882097,0.14216157,129.42,129.39,0.063]
[1742211882313,14.88270951,129.41,129.39,0.063]
[1742211882502,14.88270951,129.4,129.39,0.063]
[1742211890812,15.16703265,129.4,129.39,0.063]
[1742211891398,22.89493265,129.4,129.39,0.063]
[1742211891602,22.92493265,129.4,129.39,0.063]
[1742211892196,41.57458151,129.4,129.39,0.063]
[1742211896816,33.81668151,129.39,129.38,0.063]
[1742211897921,41.54518151,129.39,129.38,0.063]
[1742211902525,22.89553265,129.39,129.38,0.063]
[1742211907927,41.54518151,129.39,129.38,0.063]
[1742211915715,41.57518151,129.39,129.38,0.063]
[1742211919439,20.0,129.37,129.36,0.063]
[1742211919734,34.88270951,129.37,129.36,0.063]
[1742211920115,0.28432314,129.36,129.35,0.063]
[1742211920314,93.34751955,129.36,129.35,0.063]
[1742211921739,101.07781955,129.36,129.35,0.063]
[1742211924339,0.28432314,129.34,129.33,0.063]
[1742211924511,33.81668151,129.34,129.33,0.063]
[1742211925337,41.54818151,129.34,129.33,0.063]
[1742211927033,20.28432314,129.31,129.3,0.063]
[1742211927340,53.81668151,129.31,129.3,0.063]
[1742211928811,61.54998151,129.31,129.3,0.063]
[1742211929713,18.933972,129.3,129.29,0.063]
[1742211929916,93.34751955,129.3,129.29,0.063]
[1742211930136,105.12020486,129.3,129.29,0.063]
[1742211930537,105.12020486,129.3,129.26,0.063]
[1742211930727,22.90153265,129.29,129.26,0.063]
[1742211935548,41.55118151,129.29,129.26,0.063]
[1742211935851,22.90153265,129.29,129.26,0.063]
[1742211936021,15.16703265,129.29,129.26,0.063]
[1742211936336,14.50667763,129.32,129.26,1.714]
[1742211936555,14.88270951,129.3,129.26,1.714]
[1742211936722,14.88270951,129.29,129.26,1.714]
[1742211938143,20.0,129.3,129.26,9.4501]
[1742211938321,14.88270951,129.3,129.26,9.4501]
[1742211938525,14.88270951,129.3,129.29,6.0802]
[1742211938845,0.14216157,129.33,129.29,6.0802]
[1742211939053,14.88270951,129.32,129.29,6.0802]
[1742211939422,0.28432314,129.33,129.29,13.8145]
[1742211939622,14.88270951,129.32,129.29,13.8145]
[1742211940447,14.94570951,129.32,129.29,13.8145]
[1742211941326,14.88270951,129.31,129.29,13.8145]
[1742211941532,14.94570951,129.32,129.29,13.8145]
[1742211941732,14.94570951,129.32,129.29,6.0802]
[1742211943956,14.94570951,129.32,129.29,13.8145]
[1742211946756,0.063,129.32,129.29,13.8145]
[1742211946947,14.94570951,129.32,129.29,6.0802]
[1742211947456,14.88270951,129.31,129.29,6.0802]
[1742211951639,14.88270951,129.3,129.29,6.0802]
[1742211953339,15.16703265,129.31,129.29,6.0802]
[1742211953740,0.28432314,129.31,129.29,6.0802]
[1742211954753,15.08787108,129.32,129.29,13.8146]
[1742211956564,15.08787108,129.32,129.29,6.0802]
[1742211957060,15.08787108,129.32,129.29,3.9802]
[1742211957966,22.82067108,129.32,129.29,3.9802]
[1742211958768,14.88270951,129.31,129.29,3.9802]
[1742211959862,22.82067108,129.32,129.29,3.9802]
[1742211961172,15.23003265,129.32,129.29,3.9802]
[1742211961379,0.063,129.32,129.29,11.2145]
[1742211961755,15.23003265,129.32,129.29,3.4802]
[1742211962980,0.063,129.32,129.29,26.09730951]
[1742211963185,0.063,129.32,129.3,14.88270951]
[1742211963852,0.063,129.32,129.29,26.09730951]
[1742211964377,0.063,129.32,129.29,11.2146]
[1742211965479,0.063,129.32,129.29,3.4802]
[1742211965669,15.23003265,129.32,129.29,3.4802]
[1742211965853,0.063,129.32,129.29,26.09720951]
[1742211968573,0.063,129.32,129.31,14.88270951]
[1742211969668,0.063,129.32,129.31,22.61600951]
[1742211972473,0.0001,129.32,129.31,353.26565837]
[1742211972678,0.0001,129.32,129.31,359.74165837]
[1742211973365,0.03,129.39,129.31,440.82558151]
[1742211973583,0.03,129.39,129.38,22.61180951]
[1742211973882,0.03,129.39,129.38,29.23180951]
[1742211976569,0.03,129.4,129.38,440.68105837]
[1742211976774,0.03,129.4,129.39,33.53235837]
[1742211976987,0.03,129.4,129.39,35.10435837]
[1742211977165,0.063,129.45,129.39,35.10435837]
[1742211977360,0.063,129.45,129.44,14.88270951]
[1742211977564,0.063,129.45,129.44,22.60820951]
[1742211977789,0.063,129.45,129.44,14.88270951]
[1742211978279,0.063,129.45,129.44,22.60820951]
[1742211979085,0.063,129.45,129.44,14.88270951]
[1742211979285,0.063,129.45,129.43,6.62]
[1742211979481,0.063,129.45,129.43,21.50270951]
[1742211980962,0.063,129.45,129.43,6.62]
[1742211981686,0.063,129.45,129.42,80.7996]
[1742211984789,0.063,129.45,129.44,14.88270951]
[1742211986090,0.063,129.45,129.44,22.60820951]
[1742211986793,0.063,129.45,129.44,103.40780951]
[1742211994484,0.063,129.45,129.44,80.7996]
[1742211994684,0.063,129.45,129.44,88.5251]
[1742211994892,0.063,129.45,129.44,103.40780951]
[1742211995303,22.19840951,129.49,129.44,103.40780951]
[1742211995489,22.19840951,129.49,129.44,22.60820951]
[1742211998404,22.19840951,129.49,129.44,7.7255]
[1742211998600,14.88270951,129.49,129.44,22.60820951]
[1742211998806,15.02487108,129.51,129.45,14.88270951]
[1742211998991,15.02487108,129.51,129.45,21.50270951]
[1742211998992,15.02487108,129.5,129.45,21.50270951]
[1742211999390,22.74627108,129.51,129.46,14.88270951]
[1742211999798,15.02487108,129.51,129.46,14.88270951]
[1742212000315,22.74627108,129.51,129.46,14.88270951]
[1742212001416,22.74627108,129.51,129.47,7.7237]
[1742212001594,14.94570951,129.5,129.47,7.7237]
[1742212001794,0.063,129.5,129.47,7.7237]
[1742212002096,0.063,129.5,129.47,22.60640951]
[1742212002926,0.063,129.5,129.48,14.88270951]
[1742212003714,0.063,129.5,129.49,7.7226]
[1742212005110,0.063,129.5,129.49,22.60530951]
[1742212005314,0.063,129.5,129.49,29.20530951]
[1742212008116,0.063,129.5,129.49,110.00490951]
[1742212008814,0.03,129.52,129.51,20.0]
[1742212009126,0.03,129.52,129.51,34.88270951]
[1742212010820,0.03,129.52,129.51,42.60410951]
[1742212011721,0.03,129.52,129.51,22.60410951]
[1742212012298,0.03,129.52,129.51,334.60410951]
[1742212012507,0.03,129.52,129.49,80.7996]
[1742212012715,14.88270951,129.51,129.47,307.68580951]
[1742212012899,14.88270951,129.51,129.49,6.6]
[1742212013100,14.91270951,129.52,129.49,6.6]
[1742212013317,0.03,129.52,129.49,6.663]
[1742212014199,0.03,129.52,129.49,21.54570951]
[1742212014398,0.03,129.52,129.49,6.663]
[1742212014601,14.91270951,129.52,129.49,6.663]
[1742212015322,14.91270951,129.52,129.49,14.3855]
[1742212015822,0.03,129.52,129.49,14.3855]
[1742212018222,14.91270951,129.52,129.49,6.663]
[1742212020124,0.03,129.52,129.49,6.663]
[1742212020299,0.03,129.52,129.49,14.3854]
[1742212021227,14.91270951,129.52,129.49,6.663]
[1742212023628,22.63370951,129.52,129.49,6.663]
[1742212023920,14.88270951,129.5,129.49,0.063]
[1742212024714,22.74657108,129.51,129.49,0.063]
[1742212025113,14.88270951,129.5,129.49,0.063]
[1742212025729,22.60470951,129.5,129.49,0.063]
[1742212026832,22.88903265,129.5,129.49,0.063]
[1742212029533,0.14216157,129.51,129.49,0.063]
[1742212030434,22.74627108,129.51,129.49,0.063]
[1742212031529,15.02487108,129.51,129.49,0.063]
[1742212031721,14.91270951,129.52,129.49,0.063]
[1742212031923,0.03,129.52,129.49,14.94570951]
[1742212032535,0.03,129.52,129.49,0.063]
[1742212034339,14.91270951,129.52,129.49,0.063]
[1742212035646,0.03,129.52,129.49,0.063]
[1742212041942,0.03,129.52,129.51,14.88270951]
[1742212042627,0.03,129.52,129.51,22.60410951]
[1742212045130,0.03,129.52,129.51,103.40370951]
[1742212045438,0.0001,129.52,129.51,123.69295837]
[1742212048053,0.0001,129.52,129.51,435.69295837]
[1742212050549,0.0001,129.52,129.51,417.04330951]
[1742212050748,0.0001,129.52,129.51,105.04330951]
[1742212051664,0.0001,129.52,129.51,103.40370951]
[1742212052748,0.0001,129.52,129.51,110.00370951]
[1742212058269,0.0001,129.52,129.51,128.65335837]
[1742212059740,0.0001,129.52,129.51,440.65335837]
[1742212060657,0.0001,129.52,129.51,110.00370951]
[1742212065056,0.0001,129.52,129.51,80.7996]
[1742212065263,0.0001,129.52,129.5,14.3847]
[1742212065664,0.0001,129.52,129.5,6.663]
[1742212066048,0.0001,129.52,129.5,14.3848]
[1742212066450,0.0001,129.52,129.5,29.26750951]
[1742212069452,0.0001,129.52,129.51,14.88270951]
[1742212069864,0.0001,129.52,129.51,22.60410951]
[1742212070787,0.0001,129.52,129.51,103.40370951]
[1742212073175,0.0001,129.52,129.51,415.40370951]
[1742212074257,0.0001,129.52,129.51,88.521]
[1742212074458,0.0001,129.52,129.51,103.40370951]
[1742212075279,0.0001,129.52,129.51,110.00370951]
[1742212078371,0.0001,129.52,129.51,103.40370951]
[1742212080180,0.0001,129.52,129.51,95.68230951]
[1742212080382,0.0001,129.52,129.51,80.7996]
[1742212080684,0.0001,129.52,129.5,29.26740951]
[1742212081764,0.0001,129.52,129.51,14.88270951]
[1742212082878,0.0001,129.52,129.51,22.60410951]
[1742212083284,0.0001,129.52,129.51,14.88270951]
[1742212084566,0.0001,129.52,129.51,22.60410951]
[1742212086288,0.0001,129.52,129.51,7.7214]
[1742212086479,0.0001,129.52,129.5,29.26740951]
[1742212087599,0.0001,129.52,129.5,14.94570951]
[1742212087769,0.0001,129.52,129.5,0.063]
[1742212088996,7.7209,129.52,129.5,0.063]
[1742212089282,0.0001,129.52,129.5,0.063]
[1742212090683,0.0001,129.52,129.5,14.94570951]
[1742212091083,0.0001,129.52,129.5,22.66750951]
[1742212091898,0.0001,129.52,129.5,0.063]
[1742212092083,15.16713265,129.52,129.5,0.063]
[1742212093079,22.88843265,129.51,129.5,0.063]
[1742212095391,8.00572314,129.51,129.5,0.063]
[1742212099182,22.88843265,129.51,129.5,0.063]
[1742212099908,8.00572314,129.51,129.5,0.063]
[1742212106608,41.53808151,129.51,129.5,0.063]
[1742212107198,41.53808151,129.51,129.5,0.0001]
[1742212107400,43.19008151,129.51,129.5,0.0001]
[1742212108023,18.933972,129.5,129.49,0.0001]
[1742212108304,41.53868151,129.5,129.49,0.0001]
[1742212119489,41.60168151,129.5,129.49,0.0001]
[1742212126712,18.933972,129.42,129.4,0.03]
[1742212127125,14.88270951,129.41,129.4,0.03]
[1742212128127,22.61000951,129.41,129.4,0.03]
[1742212130021,41.54398151,129.41,129.4,0.03]
[1742212139536,41.54398151,129.41,129.4,0.03]
[1742212140430,15.16703265,129.41,129.4,0.03]
[1742212141938,0.28432314,129.41,129.4,0.03]
[1742212142939,15.16703265,129.41,129.4,0.03]
[1742212143723,0.28432314,129.41,129.4,0.03]
[1742212144240,0.28432314,129.43,129.4,0.03]
[1742212144438,0.28432314,129.44,129.4,14.91270951]
[1742212144637,0.28432314,129.44,129.4,22.70820951]
[1742212144832,0.28432314,129.45,129.41,14.88270951]
[1742212145831,0.28432314,129.45,129.42,7.7267]
[1742212146033,35.02487108,129.45,129.41,7.7271]
[1742212147745,42.74987108,129.45,129.41,7.7271]
[1742212147945,42.74987108,129.45,129.4,29.30820951]
[1742212147946,15.02487108,129.44,129.4,22.1532]
[1742212149347,0.14216157,129.44,129.4,37.03590951]
[1742212151353,22.75067108,129.44,129.4,14.4255]
[1742212151540,15.02487108,129.44,129.4,22.1533]
[1742212152349,0.14216157,129.44,129.4,37.03600951]
[1742212153754,0.14216157,129.44,129.41,14.88270951]
[1742212154547,0.14216157,129.44,129.4,37.03600951]
[1742212158547,0.14216157,129.44,129.41,14.88270951]
[1742212159652,0.14216157,129.44,129.41,22.60970951]
[1742212168365,14.88270951,129.46,129.41,22.60970951]
[1742212168551,0.063,129.49,129.45,21.41720951]
[1742212168754,0.063,129.49,129.47,14.88270951]
[1742212169075,0.063,129.49,129.41,6.2706]
[1742212169076,0.28432314,129.46,129.41,6.2706]
[1742212169255,18.933972,129.46,129.41,6.2706]
[1742212169453,0.28432314,129.44,129.41,6.2706]
[1742212170650,0.14216157,129.44,129.41,6.2706]
[1742212171172,0.28432314,129.44,129.41,6.2706]
[1742212172453,8.01012314,129.44,129.41,6.2706]
[1742212172768,0.28432314,129.44,129.41,13.9977]
[1742212172969,0.28432314,129.45,129.42,14.88270951]
[1742212173157,20.0,129.46,129.43,14.88270951]
[1742212173549,20.0,129.46,129.42,14.88270951]
[1742212173871,0.28432314,129.45,129.41,21.15330951]
[1742212174075,15.16703265,129.45,129.41,6.2706]
[1742212175370,0.28432314,129.45,129.41,21.15330951]